Cogmind - Beta 9.1 @@@ ROGUE MODE // 2019.10.31 @ 21:36:20 // Halloween2019/Abominations Player: Gitida Result: Self-destructed Performance ------------- Evolutions (1) 500 Regions Visited (2) 400 Robots Destroyed (7) 35 Value Destroyed (282) 282 Prototype IDs (0) 0 Alien Tech Used (0) 0 Bonus (0) 0 TOTAL SCORE: 1217 Bonus ------- None Cogmind --------- Core Integrity 360/400 Matter 294/300 Energy 100/100 System Corruption 0% Temperature Cool (284) Location -9/Materials Parts ------- Power (1) Propulsion (3) Light Treads Utility (3) Large Storage Unit Large Storage Unit Weapon (2) EM Shotgun Light Assault Rifle Inventory (16) Light Ion Engine Small Laser Small Laser Particle Cannon Rocket Launcher Rocket Launcher Peak State ------------ Power Light Ion Engine Propulsion Light Treads Light Treads Utility Small Storage Unit Large Storage Unit Weapon Particle Cannon Light Assault Rifle Inventory Light Ion Engine Large Storage Unit Small Laser Small Laser Particle Cannon Rocket Launcher Rocket Launcher [Rating: 9] Favorites ----------- Power Light Ion Engine Engine Light Ion Engine Propulsion Light Treads Treads Light Treads Utility Small Storage Unit Storage Small Storage Unit Weapon Light Assault Rifle Energy Gun Medium Laser Energy Cannon Particle Cannon Ballistic Gun Light Assault Rifle Build | -11 -10 -9 ------- Run | Scr Mat Mat Slots Evolved 2 | . . 2 Power . | . . . Propulsion 1 | . . 1 Utility 1 | . . 1 Weapon . | . . . Parts Attached 11 | 6 4 1 Power 1 | 1 . . Engine 1 | 1 . . Core . | . . . Reactor . | . . . Propulsion 2 | 2 . . Treads 2 | 2 . . Leg . | . . . Wheel . | . . . Hover . | . . . Flight . | . . . Utility 3 | 1 2 . Device . | . . . Storage 3 | 1 2 . Processor . | . . . Hackware . | . . . Protection . | . . . Artifact . | . . . Weapon 5 | 2 2 1 Energy Gun 2 | 1 . 1 Energy Cannon 1 | . 1 . Ballistic Gun 2 | 1 1 . Ballistic Cannon . | . . . Launcher . | . . . Special Weapon . | . . . Impact Weapon . | . . . Slashing Weapon . | . . . Piercing Weapon . | . . . Special Melee Weapon . | . . . Unidentified Prototypes . | . . . Parts Lost 3 | . 1 2 Power 1 | . . 1 Propulsion 1 | . . 1 Utility . | . . . Weapon 1 | . 1 . Highest Loss Streak 2 | . 1 2 Average Slot Usage (%) 85 | . 88 74 Engine 12 | . 14 9 Treads 26 | . 28 22 Storage 17 | . 16 22 Energy Gun 6 | . 7 3 Energy Cannon 6 | . 6 6 Ballistic Gun 13 | . 14 11 Naked Turns . | . . . Heaviest Build 40 | 10 40 40 Greatest Support 40 | 40 40 40 Greatest Overweight (x) 1 | . . 1 Average Overweight (x) . | . . . Largest Inventory Capacity 16 | 6 16 16 Average Capacity 8 | 5 8 16 Most Carried 7 | 4 7 7 Average Carried 5 | 1 5 6 Final Capacity 16 | 6 16 16 Final Carried 6 | 2 6 6 Class Distribution -------------------- 100% | Mutant Dominant Class ---------------- Mutant | -10/Materials Mutant | -9/Materials Resources | -11 -10 -9 ----------- Run | Scr Mat Mat Matter Collected 312 | 245 67 . Remotely . | . . . Salvage Created 332 | 68 264 . Parts 21 | . 21 . Haulers Intercepted 1 | . 1 . Recyclers Shooed . | . . . Parts Field Recycled . | . . . Retrieved Matter . | . . . Parts Self-Destructed . | . . . Prevented . | . . . Kills | -11 -10 -9 ------- Run | Scr Mat Mat Combat Hostiles Destroyed 5 | . 5 . Guns 4 | . 4 . Cannons 1 | . 1 . Classes Destroyed 4 | 1 3 . Hauler 1 | . 1 . Recycler 1 | 1 . . Grunt 1 | . 1 . Abomination 4 | . 4 . Best Kill Streak 3 | 1 3 . Combat Bots Only 3 | . 3 . Max Kills in Single Turn 1 | 1 1 . Gunslinging . | . . . Exploded . | . . . Melee . | . . . Uniques/NPCs Destroyed . | . . . Combat | -11 -10 -9 -------- Run | Scr Mat Mat Damage Taken 637 | . 416 221 Core 79 | . 39 40 Absorbed by Shields . | . . . Core Remaining (%) 92 | 100 84 . Volleys Fired 38 | . 36 2 Largest 2 | . 2 2 Hottest 88 | . 88 88 Shots Fired 74 | . 71 3 Gun 59 | . 57 2 Cannon 15 | . 14 1 Launcher . | . . . Special . | . . . Kinetic 38 | . 36 2 Thermal 36 | . 35 1 Explosive . | . . . Electromagnetic . | . . . Robot Hit Streak 5 | . 5 . Robot Miss Streak 3 | . 3 3 Penetration Max . | . . . Secondary Targets 1 | . 1 . Max Gunslinging Chain 1 | . 1 . Shots Hit Robots 42 | . 42 . Core Hits 17 | . 16 1 Critical Hits . | . . . Critical Kills . | . . . Critical Parts Destroyed . | . . . Melee Attacks . | . . . Impact . | . . . Slashing . | . . . Piercing . | . . . Sneak Attacks . | . . . Combat Hostiles . | . . . Follow-up Attacks . | . . . Damage Inflicted 556 | 5 530 21 Guns 403 | . 403 . Cannons 148 | . 127 21 Explosions . | . . . Melee . | . . . Ramming 5 | 5 . . Kinetic 213 | . 213 . Thermal 338 | . 317 21 Explosive . | . . . Electromagnetic . | . . . Impact . | . . . Slashing . | . . . Piercing . | . . . Highest Corruption 2 | . 2 . Average Corruption 2 | . 2 . Corruption Purged . | . . . Effects 1 | . 1 . Heat Flow Errors 1 | . 1 . Overload Shots . | . . . Overflow Damage . | . . . Projectiles . | . . . Explosions . | . . . Melee . | . . . Knockbacks . | . . . Impact . | . . . Kinetic . | . . . Secondary . | . . . Self-Inflicted Damage . | . . . Shots . | . . . Rammed 3 | 3 . . Targets Rammed 4 | 4 . . Kicked . | . . . Crushed 1 | 1 . . Highest Temperature 513 | . 276 513 Average Temperature 156 | . 98 268 Received Heat Transfer 93 | . 12 81 Effects 4 | . . 4 Interference 1 | . . 1 Matter Decay 1 | . . 1 Short Circuit 2 | . . 2 Siege Activations . | . . . Robots Corrupted . | . . . Combat Hostiles . | . . . Parts Fried . | . . . Impact Corruptions . | . . . Robots Melted . | . . . Combat Hostiles . | . . . Parts Melted . | . . . Heat Transferred 460 | . 423 37 Parts Sabotaged . | . . . Parts Stolen . | . . . Parts Stripped . | . . . Power Chain Reactions . | . . . Missiles Intercepted . | . . . Alert | -11 -10 -9 ------- Run | Scr Mat Mat Peak Influence 31 | 5 31 2 Average Influence 12 | 1 17 1 Maximum Alert Level . | . . . Low Security (%) 100 | . . . Level 1 . | . . . Level 2 . | . . . Level 3 . | . . . Level 4 . | . . . Level 5 . | . . . High Security . | . . . Max Security . | . . . Squads Dispatched 4 | . 2 2 Investigation . | . . . Extermination . | . . . Reinforcement 3 | . 1 2 Assault 1 | . 1 . Garrison . | . . . Intercept . | . . . Construction Impeded . | . . . Haulers Reinforced . | . . . Stealth | -11 -10 -9 --------- Run | Scr Mat Mat Distress Signals 7 | . 1 6 Communications Jammed . | . . . Distress Signals . | . . . Times Spotted 13 | . 10 3 Peak Tracking Total 3 | . 3 3 Tactical Retreats 1 | . 1 . Traps | -11 -10 -9 ------- Run | Scr Mat Mat Traps Triggered 1 | . 1 . Indirectly . | . . . Trap Hack Attempts . | . . . Triggered . | . . . Disarmed . | . . . Reprogrammed . | . . . Reused . | . . . Traps Extracted . | . . . Installed . | . . . Triggered 1 | . 1 . Machines | -11 -10 -9 ---------- Run | Scr Mat Mat Machines Disabled . | . . . Max in Single Turn . | . . . Machines Sabotaged . | . . . Garrisons Compromised . | . . . Overloaded Fab Kills . | . . . Fab Network Shutdowns . | . . . Hacking | -11 -10 -9 --------- Run | Scr Mat Mat Machines Accessed 1 | . 1 . Terminals 1 | . 1 . Fabricators . | . . . Repair Stations . | . . . Recycling Units . | . . . Scanalyzers . | . . . Garrison Access . | . . . Total Hacks 2 | . 2 . Successful 1 | . 1 . Failed 1 | . 1 . Catastrophic 1 | . 1 . Database Lockouts . | . . . Manual . | . . . Terminals 2 | . 2 . Fabricators . | . . . Repair Stations . | . . . Recycling Units . | . . . Scanalyzers . | . . . Garrison Access . | . . . Terminal Hacks 1 | . 1 . Level Access Points 1 | . 1 . Fabricator Hacks . | . . . Repair Station Hacks . | . . . Recycling Unit Hacks . | . . . Scanalyzer . | . . . Garrison Access Hacks . | . . . Unauthorized Hacks . | . . . Terminals . | . . . Fabricators . | . . . Repair Stations . | . . . Recycling Units . | . . . Scanalyzers . | . . . Garrison Access . | . . . Data Cores Recovered . | . . . Used . | . . . Hacking Detections . | . . . Full Trace Events . | . . . Feedback Events . | . . . Feedback Blocked . | . . . Robot Schematics Acquired . | . . . Robots Built . | . . . Matter . | . . . Time . | . . . Total Robot Build Rating . | . . . Part Schematics Acquired . | . . . Parts Built . | . . . Matter . | . . . Time . | . . . Total Part Build Rating . | . . . Parts Repaired . | . . . Time . | . . . Parts Recycled . | . . . Recycled Matter . | . . . Retrieved Matter . | . . . Retrieved Components . | . . . Parts Scanalyzed . | . . . Part Schematics Acquired . | . . . Parts Damaged . | . . . Bothacking | -11 -10 -9 ------------ Run | Scr Mat Mat Used RIF Installer . | . . . Robots Hacked . | . . . Non-combat . | . . . Combat . | . . . Robot Hacks Applied . | . . . Relay Couplers Released . | . . . Robots Rewired . | . . . Allies Hacked . | . . . Hacks Repelled . | . . . Allies | -11 -10 -9 -------- Run | Scr Mat Mat Total Allies . | . . . Largest Group . | . . . Highest-Rated Group . | . . . Highest-Rated Ally . | . . . Total Orders . | . . . Ally Attacks . | . . . Total Damage . | . . . Kills . | . . . Allies Corrupted . | . . . Allies Melted . | . . . Intel | -11 -10 -9 ------- Run | Scr Mat Mat Robot Analysis Total . | . . . Derelict Logs Recovered . | . . . Drone Launches . | . . . Drone Recoveries . | . . . Exploration | -11 -10 -9 ------------- Run | Scr Mat Mat Turns Passed 693 | 120 457 116 Spaces Moved 346 | 69 213 64 Core 9 | 9 . . Treads 337 | 60 213 64 Legs . | . . . Wheels . | . . . Hover . | . . . Flight . | . . . Fastest Speed 50 | 50 160 160 Average Speed 157 | 145 160 161 Slowest Speed 180 | 160 160 180 Overloaded Moves . | . . . Propulsion Burnouts . | . . . Robots Hopped . | . . . Cave-ins Triggered . | . . . Exploration Rate (%) 20 | 6 44 11 Regions Visited 2 Branch Regions . Pre-discovered Areas . | . . . Known Exits Taken 1 | . 1 . Unknown Exits Taken 1 | 1 . . Scrap Searched . | . . . Spaces Dug . | . . . Terrain Destroyed 1 | . 1 . Melee . | . . . Projectile 1 | . 1 . AOE . | . . . Actions | -11 -10 -9 --------- Run | Scr Mat Mat Total 420 | 86 260 74 Wait 5 | . . 5 Move 344 | 68 212 64 Hop . | . . . Pick Up 15 | 8 6 1 Fast Attach 1 | . 1 . Attach 8 | 6 1 1 Detach . | . . . Swap 2 | . 2 . Drop 3 | . 2 1 Fire 38 | . 36 2 Melee . | . . . Ram . | . . . Kick . | . . . Crush 4 | 4 . . Escape Stasis . | . . . Rewire . | . . . Trap . | . . . Miscellaneous . | . . . Route ------- -11/Scrapyard -10/Materials (discovered 3 exits: *Mat x3) -9/Materials History --------- Turn | Location | Event 6 | -11/Scrapyard | Discovered new exit (range 16) 121 | -11/Scrapyard | Entered Materials 285 | -10/Materials | Identified exit to Materials 312 | -10/Materials | Build established: Mutant 578 | -10/Materials | Entered another Materials area 578 | -9/Materials | Evolved 2 slots: Propulsion x1, Utility x1 694 | -9/Materials | Self-destructed Last Messages --------------- ALERT: Hostiles spotted, dispatching reinforcements to Terminal M011. O-16 Technician locks terminal. ALERT: Unidentified virus spreading, local system control compromised. ALERT: Virus reaching critical density, losing system control. ALERT: Hostiles spotted, dispatching reinforcements to Terminal M008. Forced to warp away. Lesser Abomination absorbs Tractor Beam. Warp Anomaly forced to warp away. Overheating: Matter decay (-32). Overheating: Short circuit. Particle Cannon permanently disabled. Dropped Particle Cannon. Warp Anomaly forced to warp away. Acquired EM Shotgun. Lgt. Ion Engine destroyed. Overheating: System interference. Lgt. Assault Rifle temporarily disabled. Overheating: Short circuit. Lgt. Treads permanently disabled. Lgt. Treads destroyed. Map ----- +----------------------------------------------------+ | ?????????????????????????????# ???????????????? | | ??????????????????????????#### ???????????????? | | ??????????????????????????? ???????????????? | | ????????????????????????? ???????????????? | | ?????????????????????????"" """ ???????????????? | | ????????????????????????""" """ ###????????????? | | ????????????????????# """ """ #??#####?????? | | ????????????????????# #?""" """????? | | ????????????????????# #?""" """ ???? | | ????????????????????#! """ """ # """ """ #??? | | ????????????????????????""" """ # #??? | | ????????????????????# """ """ + #??? | | ????????????????????# # #??? | | ????????????????????# # #??? | | ??????????????????????T##"T"##""" #? #??? | | ?????????????????????????##???# " #?#########??? | | ??????????????????????????????# " #????????????? | | ?????????????????????????????? " #????????????? | | ???????????????????????########;; #??########??? | | ???????????????????????# ;Y #? #??? | | ???????????????????????# """ ; #? ???? | | ???????????????????????# """ ; # ????? | | ???????????????????????# """ ; # """ ""?????? | | ???????????????????????# ; + """ ""?????? | | ???????????????????????# """ ; # """ ""?????? | | ???????????????????????#|@"""[ ; # ????? | | ???????????????????????# """ ; #? ???? | | ???????????????????????# [ ; #?########???? | | ??????????????????# ## ###;##;#;; #????????????? | | ?????????? " ????" A " #????????????? | | ?????????? """ """"""""""";;""";; #????????????? | | ????????? " ] #????????????? | | ????????? " #????????????? | | ????????? " #????????????? | | ??????????"" ""######################????????????? | | ?????????????????????????????????????????????????? | | ?????????????????????????????????????????????????? | | ?????????????????????????????????????????????????? | | ?????????????????????????????????????????????????? | | ?????????????????????????????????????????????????? | | ?????????????????????????????????????????????????? | | ?????????????????????????????????????????????????? | | ?????????????????????????????????????????????????? | | ?????????????????????????????????????????????????? | | ?????????????????????????????????????????????????? | | ?????????????????????????????????????????????????? | | ?????????????????????????????????????????????????? | | ?????????????????????????????????????????????????? | | ?????????????????????????????????????????????????? | | ?????????????????????????????????????????????????? | +----------------------------------------------------+ Best States ------------- Heat Dissipation 28 Energy Generation 10 Energy Capacity 125 Matter Stores 300 Matter Capacity 300 Sight Range 16 Terrain Scan Density 10 Evasion (%) 50 Recoil Reduction 2 Item Schematics ----------------- None Robot Schematics ------------------ None Fabricated ------------ Nothing Alien Tech Used ----------------- None Achievements -------------- None Challenges ------------ None Game ------ Seed CouplerGammaWarhead Manual? 0 Play Time 00:06:41 Cumulative 111.5 hours Start 2019.10.31 @ 21:30:58 End 2019.10.31 @ 21:36:20 Sessions 1 Manual Loads 0 Difficulty Rogue Special Mode Halloween2019/Abominations Game No. 117 Rogue 117 Adventurer 0 Explorer 0 Win Type - Total 1 Types 1/0/0/0/0/0/0 Lore% 61 Gallery% 60 Achievement% 46 Wizard Run 0 Options --------- ASCII 0 Keyboard 0 Movement Numpad Keybinds 0 Fullscreen 1 Font 12/Terminus Map View 83x54 Tactical HUD 0 Map Filters NONE Filters NONE Steam 1 RUN: 4be78060-2148-4b46-ab98-6926ab748ae7